lending/lending_fUSD_20251107
["ID","MTS","AMOUNT","RATE_DAILY","PERIOD"]
[393332066,1762486244096,-510.5905813,0.00022433,2]
[393332067,1762486244105,-218.65853885,0.00022476,2]
[393332068,1762486244114,-500.0,0.00022486,2]
[393332069,1762486244123,-874.46145275,0.00022496,2]
[393332070,1762486244133,-35159.08642138,0.000225,2]
[393332071,1762486244142,-166.66,0.0002254,2]
[393332072,1762486244151,-1000.0,0.00022553,2]
[393332073,1762486244161,-500.0,0.00022558,6]
[393332074,1762486244170,-523.0,0.00022558,6]
[393332075,1762486244180,-622.38280083,0.00022558,6]
[393332076,1762486244189,-7789.24,0.00022562,2]
[393332077,1762486244198,-18604.15,0.00022562,2]
[393332078,1762486244207,-9999.99,0.00022562,2]
[393332079,1762486244216,-352.75556532,0.00022646,2]
[393332080,1762486244225,-406.51748301,0.00022695,6]
[393332081,1762486244234,-523.0,0.00022695,6]
[393332082,1762486244243,-517.95567933,0.0002271,2]
[393332083,1762486244252,-874.46145275,0.00022742,2]
[393332084,1762486244262,-523.0,0.00022832,6]
[393332085,1762486244271,-210.66,0.00022844,2]
[393332086,1762486244281,-729.26735117,0.00022857,2]
[393332087,1762486244290,-1000.0,0.00022861,2]
[393332088,1762486244301,-162.37318191,0.00022865,2]
[393332089,1762486244311,-19202.56589629,0.000229,2]
[393332090,1762486244321,-2000.0,0.00022915,2]
[393332091,1762486244332,-523.0,0.00022969,6]
[393332092,1762486244341,-1254.16358819,0.00022981,2]
[393332093,1762486244351,-859.56389338,0.00022987,2]
[393332094,1762486244361,-171.93,0.00023,2]
[393332095,1762486244370,-628.25562574,0.00023,7]
[393332096,1762486244379,-435.52331328,0.00023,2]
[393332097,1762486244388,-997.68735176,0.00023,2]
[393332098,1762486244400,-400.0,0.00023,2]
[393332099,1762486244409,-152.22,0.00023006,2]
[393332100,1762486244419,-218.65853885,0.00023008,2]
[393332101,1762486244429,-992.63712394,0.00023034,2]
[393332102,1762486244439,-2560.26705146,0.000231,2]
[393332103,1762486244448,-286.35503686,0.00023101,2]
[393332104,1762486244457,-523.0,0.00023106,6]
[393332105,1762486244466,-23665.97,0.000232,7]
[393332106,1762486244476,-51657.89405864,0.000232,2]
[393332107,1762486244486,-209.475628,0.000232,7]
[393332108,1762486244496,-151.0,0.000232,7]
[393332109,1762486244505,-151.0,0.000232,7]
[393332110,1762486244515,-151.0,0.000232,7]
[393332111,1762486244524,-151.0,0.000232,7]
[393332112,1762486244534,-151.0,0.000232,7]
[393332113,1762486244543,-151.0,0.000232,7]
[393332114,1762486244552,-151.0,0.000232,7]
[393332115,1762486244563,-480.908135,0.000232,7]
[393332116,1762486244571,-480.908135,0.000232,7]
[393332117,1762486244581,-480.908135,0.000232,7]
[393332118,1762486244590,-480.908135,0.000232,7]
[393332119,1762486244599,-151.0,0.000232,7]
[393332120,1762486244608,-151.0,0.000232,7]
[393332121,1762486244617,-161.742778,0.000232,7]
[393332122,1762486244627,-156.582746,0.000232,7]
[393332123,1762486244636,-159.621312,0.000232,7]
[393332124,1762486244646,-151.0,0.000232,7]
[393332125,1762486244655,-407.024462,0.000232,7]
[393332126,1762486244664,-407.024462,0.000232,7]
[393332127,1762486244673,-407.024462,0.000232,7]
[393332128,1762486244683,-153.823368,0.000232,7]
[393332129,1762486244693,-407.024462,0.000232,7]
[393332130,1762486244702,-816.502021,0.000232,7]
[393332131,1762486244712,-816.502021,0.000232,7]
[393332132,1762486244724,-816.502021,0.000232,7]
[393332133,1762486244733,-816.502021,0.000232,7]
[393332134,1762486244742,-179.675886,0.000232,7]
[393332135,1762486244751,-179.675886,0.000232,7]
[393332136,1762486244760,-151.0,0.000232,7]
[393332137,1762486244770,-179.675886,0.000232,7]
[393332138,1762486244779,-179.675886,0.000232,7]
[393332139,1762486244788,-218.65853885,0.00023222,2]
[393332140,1762486244799,-874.46145275,0.0002324,2]
[393332141,1762486244808,-523.0,0.00023243,6]
[393332142,1762486244816,-874.46145275,0.00023306,2]
[393332143,1762486244826,-9656.71387953,0.00023328,2]
[393332144,1762486244835,-5000.0,0.00023328,2]
[393332145,1762486244844,-5000.0,0.00023328,2]
[393332146,1762486244854,-11563.9880708,0.00023333,7]
[393332147,1762486244863,-523.0,0.0002338,6]
[393332148,1762486244872,-1500.0,0.00023409,2]
[393332149,1762486244881,-218.65853885,0.00023422,2]
[393332150,1762486244890,-210.64,0.0002349,2]
[393332151,1762486244899,-200.0,0.000235,2]
[393332152,1762486244907,-523.0,0.00023517,6]
[393332153,1762486244916,-1613.0,0.00023552,2]
[393332154,1762486244925,-523.0,0.00023654,6]
[393332155,1762486244934,-874.46145275,0.00023689,2]
[393332156,1762486244943,-523.0,0.00023791,6]
[393332157,1762486244952,-218.65853885,0.00023817,2]
[393332158,1762486244961,-498.90777968,0.000239,2]
[393332159,1762486244970,-523.0,0.00023928,6]
[393332160,1762486244979,-2014.60520456,0.00023957,2]
[393332161,1762486244988,-2000.0,0.00024,2]
[393332162,1762486244997,-1010.66587826,0.00024,2]
[393332163,1762486245006,-1029.79555358,0.00024,14]
[393332164,1762486245015,-773.21698856,0.00024,2]
[393332165,1762486245024,-3600.0,0.00024,2]
[393332166,1762486245034,-16048.0046882,0.00024,2]
[393332167,1762486245043,-218.65853885,0.00024018,2]
[393332168,1762486245052,-874.46145275,0.00024057,2]
[393332169,1762486245061,-859.56389338,0.00024065,2]
[393332170,1762486245070,-539.46498832,0.00024065,6]
[393332171,1762486245123,-218.65853885,0.00024143,2]
[393332172,1762486245133,-6453.0,0.00024156,2]
[393332173,1762486245142,-262.34348346,0.00024196,2]
[393332174,1762486245151,-417.56704257,0.0002421,2]
[393332175,1762486245160,-3658.97332196,0.0002421,2]
[393332176,1762486245169,-874.46145275,0.00024259,2]
[393332177,1762486245178,-152.22,0.00024284,2]
[393332178,1762486245187,-150.0,0.00024302,5]
[393332179,1762486245196,-150.0,0.00024328,5]
[393332180,1762486245206,-266.75267811,0.00024341,5]
[393332181,1762486245215,-192.4,0.00024371,2]
[393332182,1762486245225,-3424.0,0.0002438,2]
[393332183,1762486245234,-574.0,0.0002438,2]
[393332184,1762486245243,-2142.0,0.0002438,2]
[393332185,1762486245252,-874.46145283,0.00024463,2]
[393332186,1762486245261,-177001.8860576,0.00024468,2]
[393332187,1762486245270,-151.0,0.00024468,7]
[393332188,1762486245279,-151.0,0.00024468,7]
[393332189,1762486245288,-1630.140865,0.00024468,7]
[393332190,1762486245297,-151.0,0.00024468,7]
[393332191,1762486245306,-1630.140865,0.00024468,7]
[393332192,1762486245316,-151.0,0.00024468,7]
[393332193,1762486245324,-271.678733,0.00024468,7]
[393332194,1762486245333,-1630.140865,0.00024468,7]
[393332195,1762486245342,-271.678733,0.00024468,7]
[393332196,1762486245355,-296.415688,0.00024468,7]
[393332197,1762486245364,-1630.140865,0.00024468,7]
[393332198,1762486245375,-271.678733,0.00024468,7]
[393332199,1762486245384,-151.0,0.00024468,7]
[393332200,1762486245393,-151.0,0.00024468,7]
[393332201,1762486245403,-271.678733,0.00024468,7]
[393332202,1762486245412,-151.0,0.00024468,7]
[393332203,1762486245421,-151.0,0.00024468,7]
[393332204,1762486245431,-151.0,0.00024468,7]
[393332205,1762486245440,-224.81491,0.00024468,7]
[393332206,1762486245450,-151.0,0.00024468,7]
[393332207,1762486245459,-151.0,0.00024468,7]
[393332208,1762486245468,-151.0,0.00024468,7]
[393332209,1762486245476,-170.037551,0.00024468,7]
[393332210,1762486245486,-151.0,0.00024468,7]
[393332211,1762486245495,-151.0,0.00024468,7]
[393332212,1762486245503,-729.26735117,0.00024484,2]
[393332213,1762486245512,-152.0,0.00024486,3]
[393332214,1762486245521,-23665.97,0.000245,7]
[393332215,1762486245531,-2751.97524,0.0002455,2]
[393332216,1762486245539,-162.14577741,0.0002455,15]
[393332217,1762486245549,-218.65853897,0.00024575,2]
[393332218,1762486245559,-2000.0,0.00024601,2]
[393332219,1762486245568,-200.0,0.00024601,2]
[393332220,1762486245578,-2751.97525,0.0002462,2]
[393332221,1762486245587,-210.66,0.00024637,2]
[393332222,1762486245595,-591.38327274,0.0002465,2]
[393332223,1762486245607,-820.0,0.0002466,2]
[393332224,1762486245615,-1596.0,0.0002466,2]
[393332225,1762486245624,-1273.0,0.0002466,2]
[393332226,1762486245633,-812.0,0.0002466,2]
[393332227,1762486245642,-1188.0,0.0002466,2]
[393332228,1762486245652,-905.0,0.0002466,2]
[393332229,1762486245661,-511.00752985,0.00024702,2]
[393332230,1762486245670,-1076.1710788,0.00024703,2]
[393332231,1762486245678,-39494.4591825,0.00024703,2]
[393332232,1762486245687,-500.0,0.00024775,2]
[393332233,1762486245696,-174.31415008,0.00024799,2]
[393332234,1762486245705,-500.0,0.00024799,2]
[393332235,1762486245714,-155.67358994,0.000248,2]
[393332236,1762486245726,-199.12261654,0.000248,2]
[393332237,1762486245736,-395.0,0.000248,2]
[393332238,1762486245744,-184.12,0.000248,11]
[393332239,1762486245753,-601651.024525,0.000248,3]
[393332240,1762486245762,-165.39845766,0.000248,30]
[393332241,1762486245772,-156.697005,0.000248,7]
[393332242,1762486245781,-151.0,0.000248,7]
[393332243,1762486245790,-151.0,0.000248,7]
[393332244,1762486245800,-151.0,0.000248,7]
[393332245,1762486245812,-151.0,0.000248,7]
[393332246,1762486245821,-151.0,0.000248,7]
[393332247,1762486245830,-295.47469,0.000248,7]
[393332248,1762486245839,-480.908135,0.000248,7]
[393332249,1762486245850,-480.908135,0.000248,7]
[393332250,1762486245859,-480.908135,0.000248,7]
[393332251,1762486245868,-480.908135,0.000248,7]
[393332252,1762486245877,-151.0,0.000248,7]
[393332253,1762486245887,-151.0,0.000248,7]
[393332254,1762486245896,-151.0,0.000248,7]
[393332255,1762486245904,-407.024462,0.000248,7]
[393332256,1762486245913,-407.024462,0.000248,7]
[393332257,1762486245922,-407.024462,0.000248,7]
[393332258,1762486245931,-407.024462,0.000248,7]
[393332259,1762486245940,-816.502021,0.000248,7]
[393332260,1762486245948,-816.502021,0.000248,7]
[393332261,1762486245957,-816.502021,0.000248,7]
[393332262,1762486245966,-816.502021,0.000248,7]
[393332263,1762486245975,-179.675886,0.000248,7]
[393332264,1762486245984,-179.675886,0.000248,7]
[393332265,1762486245993,-151.0,0.000248,7]
[393332266,1762486246002,-179.675886,0.000248,7]
[393332267,1762486246010,-2751.97524,0.0002487,2]
[393332268,1762486246019,-2000.0,0.00024879,2]
[393332269,1762486246029,-611.79897419,0.00024889,2]
[393332270,1762486246038,-575854.699129,0.000249,3]
[393332272,1762486246047,-151.0,0.000249,7]
[393332273,1762486246055,-151.0,0.000249,7]
[393332274,1762486246064,-151.0,0.000249,7]
[393332275,1762486246074,-188.461222,0.000249,7]
[393332276,1762486246083,-151.0,0.000249,7]
[393332277,1762486246092,-480.908135,0.000249,7]
[393332279,1762486246103,-480.908135,0.000249,7]
[393332281,1762486246112,-480.908135,0.000249,7]
[393332283,1762486246121,-480.908135,0.000249,7]
[393332285,1762486246131,-151.0,0.000249,7]
[393332287,1762486246140,-151.0,0.000249,7]
[393332289,1762486246149,-289.137584,0.000249,7]
[393332290,1762486246158,-407.024462,0.000249,7]
[393332291,1762486246167,-407.024462,0.000249,7]
[393332292,1762486246176,-407.024462,0.000249,7]
[393332293,1762486246185,-407.024462,0.000249,7]
[393332294,1762486246194,-816.502021,0.000249,7]
[393332295,1762486246203,-816.502021,0.000249,7]
[393332296,1762486246213,-816.502021,0.000249,7]
[393332297,1762486246222,-816.502021,0.000249,7]
[393332298,1762486246231,-179.675886,0.000249,7]
[393332299,1762486246241,-179.675886,0.000249,7]
[393332300,1762486246250,-255.837939,0.000249,7]
[393332301,1762486246259,-179.675886,0.000249,7]
[393332302,1762486246269,-152.0,0.00024912,4]
[393332303,1762486246278,-500.0,0.00024973,2]
[393332304,1762486246288,-165.24457208,0.00025,2]
[393332305,1762486246297,-601.46356491,0.00025,2]
[393332306,1762486246307,-205.02774379,0.00025,2]
[393332307,1762486246316,-1763.37012335,0.00025,2]
[393332308,1762486246326,-214.79459887,0.00025,21]
[393332309,1762486246335,-2739.83696639,0.00025,3]
[393332310,1762486246344,-1051.31612379,0.00025,2]
[393332311,1762486246356,-469.5370602,0.00025,7]
[393332312,1762486246375,-501.0,0.00025,6]
[393332313,1762486246385,-17067.65374904,0.00025,2]
[393332314,1762486246395,-360.0,0.00025,2]
[393332315,1762486246404,-3781.74844296,0.00025,2]
[393332316,1762486246413,-3007.19414782,0.00025,2]
[393332317,1762486246422,-12047.40317544,0.00025,2]
[393332318,1762486246431,-477.99034883,0.00025,3]
[393332319,1762486246440,-100286.44598035,0.00025,2]
[393332320,1762486246450,-5114.97724599,0.00025,7]
[393332321,1762486246459,-1029.94,0.00025,2]
[393332322,1762486246469,-450.0,0.00025,2]
[393332323,1762486246478,-2751.97525,0.0002512,2]
[393332324,1762486246488,-859.56389338,0.00025142,2]
[393332325,1762486246497,-152.0,0.00025338,5]
[393332326,1762486246509,-2751.97524,0.0002537,2]
[393332327,1762486246519,-1000.0,0.00025375,2]
[393332328,1762486246528,-1029.94,0.000255,2]
[393332329,1762486246538,-1000.0,0.00025521,2]
[393332330,1762486246547,-152.22,0.00025562,2]
[393332331,1762486246556,-2751.97525,0.0002562,2]
[393332332,1762486246566,-150.0,0.00025655,12]
[393332333,1762486246576,-150.0,0.00025655,12]
[393332334,1762486246585,-150.0,0.00025655,12]
[393332335,1762486246595,-152.0,0.00025764,6]
[393332336,1762486246606,-688.0,0.00025777,2]
[393332337,1762486246615,-150.0,0.00025792,12]
[393332338,1762486246625,-150.0,0.00025792,12]
[393332339,1762486246634,-203.53415188,0.00025792,12]
[393332340,1762486246643,-477.99034883,0.000258,3]
[393332341,1762486246653,-14088.70531115,0.00025879,2]
[393332342,1762486246662,-23665.97,0.000259,7]
[393332343,1762486246671,-498.90777968,0.000259,2]
[393332344,1762486246681,-218.76814441,0.00025929,12]
[393332345,1762486246690,-150.0,0.00025929,12]
[393332346,1762486246700,-593.35020443,0.0002599,2]
[393332347,1762486246709,-4138.65,0.00026,2]
[393332348,1762486246720,-213.82965862,0.00026,2]
[393332349,1762486246732,-160.95307683,0.00026,2]
[393332350,1762486246742,-4469.38720675,0.00026,2]
[393332351,1762486246752,-21134.59451262,0.00026,2]
[393332352,1762486246761,-198.0,0.00026,7]
[393332353,1762486246772,-1029.94,0.00026,30]
[393332354,1762486246781,-150.0,0.00026066,12]
[393332355,1762486246791,-1500.0,0.00026068,2]
[393332356,1762486246801,-729.26735117,0.00026111,2]
[393332357,1762486246810,-192.4,0.0002616,7]
[393332358,1762486246820,-152.0,0.0002619,7]
[393332359,1762486246829,-859.56389338,0.0002622,2]
[393332360,1762486246839,-27149.90272033,0.000264,2]
[393332361,1762486246850,-1029.94,0.000265,30]
[393332362,1762486246860,-9035.0,0.00026572,2]
[393332363,1762486246869,-307.58,0.00026597,2]
[393332364,1762486246878,-152.0,0.00026616,8]
[393332365,1762486246888,-1008.49713198,0.00026616,2]
[393332366,1762486246897,-210.66,0.00026643,2]
[393332367,1762486246907,-5864.35199225,0.0002666,5]
[393332368,1762486246916,-170.812782,0.00026666,7]
[393332369,1762486246926,-154.853143,0.00026666,7]
[393332370,1762486246935,-151.0,0.00026666,7]
[393332371,1762486246944,-151.0,0.00026666,7]
[393332372,1762486246953,-152.751498,0.00026666,7]
[393332373,1762486246963,-212.890596,0.00026666,7]
[393332374,1762486246973,-151.0,0.00026666,7]
[393332375,1762486246983,-151.0,0.00026666,7]
[393332376,1762486246993,-151.0,0.00026666,7]
[393332377,1762486247003,-151.0,0.00026666,7]
[393332378,1762486247012,-151.0,0.00026666,7]
[393332379,1762486247021,-151.0,0.00026666,7]
[393332380,1762486247031,-151.000008,0.00026666,7]
[393332382,1762486247041,-161.013308,0.00026666,7]
[393332384,1762486247050,-161.013308,0.00026666,7]
[393332385,1762486247060,-161.013308,0.00026666,7]
[393332386,1762486247069,-161.013308,0.00026666,7]
[393332387,1762486247079,-1000.0,0.00026667,7]
[393332388,1762486247089,-767.99,0.00026676,2]
[393332389,1762486247099,-152.22,0.0002684,2]
[393332390,1762486247109,-150.0,0.00026963,2]
[393332392,1762486247119,-150.0,0.00026973,2]
[393332393,1762486247129,-151.0,0.0002699,7]
[393332394,1762486247139,-158.628141,0.0002699,7]
[393332395,1762486247148,-151.0,0.0002699,7]
[393332396,1762486247158,-278.855926,0.0002699,7]
[393332397,1762486247167,-151.0,0.0002699,7]
[393332398,1762486247177,-151.0,0.0002699,7]
[393332399,1762486247187,-151.0,0.0002699,7]
[393332400,1762486247196,-151.0,0.0002699,7]
[393332401,1762486247206,-151.0,0.0002699,7]
[393332402,1762486247215,-151.0,0.0002699,7]
[393332403,1762486247224,-162.62384,0.0002699,7]
[393332404,1762486247234,-151.0,0.0002699,7]
[393332405,1762486247244,-151.0,0.0002699,7]
[393332406,1762486247253,-151.0,0.0002699,7]
[393332407,1762486247263,-171.130794,0.0002699,7]
[393332408,1762486247273,-154.619845,0.0002699,7]
[393332409,1762486247283,-250.0,0.00027,2]
[393332410,1762486247293,-1021.02311256,0.00027,2]
[393332411,1762486247302,-530.0,0.00027,2]
[393332412,1762486247312,-500.0,0.00027,6]
[393332413,1762486247322,-9189.92499558,0.00027,2]
[393332414,1762486247530,500.0,0.00014999,2]
[393332415,1762486247574,500.0,0.00014999,2]
[393332416,1762486247587,-752.86,0.00017999,2]
[393332417,1762486247596,-179.675886,0.000248,7]
[393332418,1762486247607,-24842.11305505,0.00027,2]
[393332419,1762486247649,500.0,0.00014999,2]
[393332420,1762486247662,-26235.66968583,0.00027,2]
[393332421,1762486247673,-17285.20464521,0.00027,2]
[393332422,1762486247685,-25509.52822693,0.00027,2]
[393332423,1762486247724,500.0,0.00014999,2]
[393332424,1762486247767,500.0,0.00014999,2]
[393332425,1762486247808,153.21855902,0.00014999,2]
[393332426,1762486247833,346.78144098,0.00014999,2]
[393332427,1762486247880,500.0,0.00014999,2]
[393332428,1762486247924,500.0,0.00014999,2]
[393332429,1762486247965,432.81399303,0.00014999,2]
[393332430,1762486248013,500.0,0.00014999,2]
[393332431,1762486248056,500.0,0.00014999,2]
[393332432,1762486248102,500.0,0.00014999,2]
[393332433,1762486248149,500.0,0.00014999,2]
[393332434,1762486248193,500.0,0.00014999,2]
[393332435,1762486248246,500.0,0.00014999,2]
[393332436,1762486248463,500.0,0.00014999,2]
[393332437,1762486248504,500.0,0.00014999,2]
[393332438,1762486248549,500.0,0.00014999,2]
[393332439,1762486248605,500.0,0.00014999,2]
[393332440,1762486248650,500.0,0.00014999,2]
[393332441,1762486248690,500.0,0.00014999,2]
[393332442,1762486248734,500.0,0.00014999,2]
[393332443,1762486248776,500.0,0.00014999,2]
[393332444,1762486248822,500.0,0.00014999,2]
[393332445,1762486248864,500.0,0.00014999,2]
[393332446,1762486248923,220.41456599,0.00014999,2]
[393332447,1762486248948,279.58543401,0.00014999,2]
[393332448,1762486248989,500.0,0.00014999,2]
[393332449,1762486249060,500.0,0.00014999,2]
[393332450,1762486249111,500.0,0.00014999,2]
[393332451,1762486249148,156.35606888,0.00014999,2]
[393332452,1762486249187,500.0,0.00014999,2]
[393332453,1762486249229,500.0,0.00014999,2]
[393332454,1762486249275,500.0,0.00014999,2]
[393332455,1762486249317,500.0,0.00014999,2]
[393332456,1762486249363,500.0,0.00014999,2]
[393332457,1762486249416,500.0,0.00014999,2]
[393332458,1762486249460,500.0,0.00014999,2]
[393332459,1762486249501,500.0,0.00014999,2]
[393332460,1762486249549,500.0,0.00014999,2]
[393332461,1762486249589,500.0,0.00014999,2]
[393332462,1762486249629,500.0,0.00014999,2]
[393332463,1762486249686,500.0,0.00014999,2]
[393332464,1762486249758,500.0,0.00014999,2]
[393332465,1762486249815,500.0,0.00014999,2]
[393332466,1762486249870,500.0,0.00014999,2]
[393332467,1762486249926,500.0,0.00014999,2]
[393332468,1762486249981,64.06849711,0.00014999,2]
[393332469,1762486250012,435.93150289,0.00014999,2]
[393332470,1762486250078,500.0,0.00014999,2]
[393332471,1762486250137,500.0,0.00014999,2]
[393332472,1762486250183,500.0,0.00014999,2]
[393332473,1762486250230,500.0,0.00014999,2]
[393332474,1762486250278,500.0,0.00014999,2]
[393332475,1762486250655,-195.00000017,0.00016438,2]
[393332476,1762486250669,-304.99999983,0.00016438,2]
[393332477,1762486250680,-500.0,0.00016438,2]
[393332478,1762486250691,-275.18543709,0.00016438,2]
[393332479,1762486250701,-500.0,0.00016438,2]
[393332480,1762486250711,-426.39392867,0.00016438,2]
[393332481,1762486250723,-752.86,0.00017999,2]
[393332482,1762486250738,-752.86,0.00017999,2]
[393332483,1762486250749,-752.86,0.00017999,2]
[393332484,1762486250759,-752.86,0.00017999,2]
[393332485,1762486250770,-752.86,0.00017999,2]
[393332486,1762486250783,-752.86,0.00017999,2]
[393332487,1762486250793,-609.363,0.0001838,2]
[393332488,1762486250805,-607.0,0.0002138,2]
[393332489,1762486250816,-607.0,0.0002438,2]
[393332490,1762486250827,-179.675886,0.000249,7]
[393332491,1762486250838,-427907.07456574,0.00027,2]
[393332492,1762486250848,-155.140863,0.00027,7]
[393332493,1762486250859,-151.0,0.00027,7]
[393332494,1762486250869,-157.139558,0.00027,7]
[393332495,1762486250880,-151.0,0.00027,7]
[393332496,1762486250891,-151.0,0.00027,7]
[393332497,1762486250901,-151.0,0.00027,7]
[393332498,1762486250913,-271.807934,0.00027,7]
[393332499,1762486250923,-151.0,0.00027,7]
[393332500,1762486250934,-151.0,0.00027,7]
[393332501,1762486250945,-158.524006,0.00027,7]
[393332502,1762486250955,-151.0,0.00027,7]
[393332503,1762486250966,-151.0,0.00027,7]
[393332504,1762486250976,-248.739953,0.00027,7]
[393332505,1762486250987,-151.0,0.00027,7]
[393332506,1762486250998,-151.0,0.00027,7]
[393332507,1762486251009,-156.838166,0.00027,7]
[393332508,1762486251020,-160.292634,0.00027,7]
[393332509,1762486251031,-159.09701,0.00027,7]
[393332510,1762486251041,-161.013308,0.00027,7]
[393332511,1762486251052,-161.013308,0.00027,7]
[393332512,1762486251063,-161.013308,0.00027,7]
[393332513,1762486251072,-161.013308,0.00027,7]
[393332514,1762486251081,-218.966974,0.00027,7]
[393332515,1762486251091,-1029.94,0.00027,30]
[393332516,1762486251100,-151.0,0.00027,7]
[393332517,1762486251111,-151.0,0.00027,7]
[393332518,1762486251120,-151.0,0.00027,7]
[393332519,1762486251129,-170.209544,0.00027,7]
[393332520,1762486251138,-151.0,0.00027,7]
[393332521,1762486251147,-151.609357,0.00027,7]
[393332522,1762486251156,-151.0,0.00027,7]
[393332523,1762486251166,-152.888891,0.00027,7]
[393332524,1762486251175,-151.0,0.00027,7]
[393332525,1762486251184,-151.0,0.00027,7]
[393332526,1762486251194,-151.0,0.00027,7]
[393332527,1762486251203,-151.0,0.00027,7]
[393332528,1762486251213,-151.0,0.00027,7]
[393332529,1762486251222,-151.0,0.00027,7]
[393332530,1762486251231,-231.493995,0.00027,7]
[393332531,1762486251241,-1630.140865,0.00027,7]
[393332532,1762486251251,-166.0127,0.00027,7]
[393332533,1762486251260,-1630.140865,0.00027,7]
[393332534,1762486251270,-271.678733,0.00027,7]
[393332535,1762486251279,-151.0,0.00027,7]
[393332536,1762486251288,-1630.140865,0.00027,7]
[393332537,1762486251298,-271.678733,0.00027,7]
[393332538,1762486251308,-1630.140865,0.00027,7]
[393332539,1762486251317,-271.678733,0.00027,7]
[393332540,1762486251327,-151.0,0.00027,7]
[393332541,1762486251336,-151.0,0.00027,7]
[393332542,1762486251346,-271.678733,0.00027,7]
[393332543,1762486251355,-151.0,0.00027,7]
[393332544,1762486251365,-151.0,0.00027,7]
[393332545,1762486251375,-151.0,0.00027,7]
[393332546,1762486251385,-187.739093,0.00027,7]
[393332547,1762486251395,-151.0,0.00027,7]
[393332548,1762486251404,-500.0,0.00027,2]
[393332549,1762486251414,-151.0,0.00027,7]
[393332550,1762486251423,-173.854535,0.00027,7]
[393332551,1762486251432,-151.0,0.00027,7]
[393332552,1762486251443,-151.0,0.00027,7]
[393332553,1762486251703,-151.0,0.00027,7]
[393332554,1762486251723,-151.0,0.00027,7]
[393332555,1762486251740,-480.908135,0.00027,7]
[393332556,1762486251750,-480.908135,0.00027,7]
[393332557,1762486251759,-480.908135,0.00027,7]
[393332558,1762486251768,-480.908144,0.00027,7]
[393332559,1762486251779,-151.0,0.00027,7]
[393332560,1762486251789,-158.778431,0.00027,7]
[393332561,1762486251798,-407.024462,0.00027,7]
[393332562,1762486251808,-407.024462,0.00027,7]
[393332563,1762486251819,-407.024462,0.00027,7]
[393332564,1762486251828,-407.024466,0.00027,7]
[393332565,1762486251837,-816.502021,0.00027,7]
[393332566,1762486251847,-816.502021,0.00027,7]
[393332567,1762486251856,-816.502021,0.00027,7]
[393332568,1762486251865,-816.502014,0.00027,7]
[393332569,1762486251874,-179.675886,0.00027,7]
[393332570,1762486251883,-179.675886,0.00027,7]
[393332571,1762486251892,-179.675886,0.00027,7]
[393332572,1762486251902,-179.675877,0.00027,7]
[393332573,1762486251912,-150.0,0.00027016,2]
[393332574,1762486251922,-300.0,0.00027016,2]
[393332575,1762486251932,-150.0,0.00027016,2]